bitfinex/quotes_BTCUSD_20241107
["timestamp","ask_amount","ask_price","bid_price","bid_amount"]
[1730941981205,0.0532295,75433.0,75425.0,0.03049594]
[1730941981603,0.0532295,75433.0,75414.0,0.00265173]
[1730941981604,1.5,75426.0,75420.0,0.005]
[1730941981780,0.00785195,75432.0,75425.0,0.13924102]
[1730941982026,0.00785195,75432.0,75426.0,0.0527431]
[1730941982235,0.05391862,75440.0,75427.0,0.00979714]
[1730941982236,1.5,75431.0,75427.0,0.00979714]
[1730941982452,0.081751,75451.0,75434.0,0.002]
[1730941982655,0.19884537,75444.0,75436.0,0.005]
[1730941982865,0.19884537,75444.0,75437.0,0.01038216]
[1730941982866,1.5,75443.0,75437.0,0.01038216]
[1730941983085,1.5,75443.0,75438.0,0.00830488]
[1730941983312,1.5,75443.0,75439.0,0.0134949]
[1730941983523,1.5,75443.0,75440.0,0.01498562]
[1730941983756,1.5,75443.0,75441.0,0.03896346]
[1730941983963,1.5,75443.0,75442.0,0.0134949]
[1730941984177,1.5,75443.0,75442.0,0.02012059]
[1730941984402,1.5,75443.0,75442.0,0.03050275]
[1730941984838,1.5,75443.0,75442.0,0.04029835]
[1730941984839,1.50113394,75443.0,75442.0,0.04029835]
[1730941985484,1.50113394,75443.0,75442.0,0.03050275]
[1730941986357,1.50113394,75443.0,75423.0,0.01]
[1730941986767,1.50113394,75443.0,75426.0,0.005]
[1730941987389,1.50113394,75443.0,75430.0,0.03188376]
[1730941987600,1.50113394,75443.0,75439.0,0.00859439]
[1730941987804,0.18216854,75440.0,75438.0,0.00859439]
[1730941988007,0.18216854,75440.0,75439.0,0.01340268]
[1730941988218,0.18216854,75440.0,75439.0,0.02371391]
[1730941988423,0.18216854,75440.0,75439.0,0.03033972]
[1730941988679,0.18216854,75440.0,75430.0,0.19884537]
[1730941989326,0.18216854,75440.0,75415.0,0.0794]
[1730941989327,0.18216854,75433.0,75421.0,0.19884537]
[1730941989536,0.081,75439.0,75422.0,0.01478703]
[1730941989776,0.081,75439.0,75431.0,0.0085945]
[1730941989984,1.5,75432.0,75431.0,0.0085945]
[1730941990205,1.5,75432.0,75431.0,0.01855877]
[1730941990422,1.5,75432.0,75431.0,0.03350019]
[1730941990641,0.081,75439.0,75431.0,0.04012633]
[1730941990855,0.081,75439.0,75432.0,0.04012633]
[1730941991072,0.18216854,75434.0,75433.0,0.0303393]
[1730941991286,0.18216854,75434.0,75433.0,0.04012759]
[1730941991511,1.68216854,75434.0,75433.0,0.0303393]
[1730941992171,1.68216854,75434.0,75433.0,0.04012673]
[1730941992848,1.5,75434.0,75433.0,0.04012673]
[1730941993291,0.000834,75443.0,75433.0,0.04012673]
[1730941993499,0.000834,75443.0,75426.0,0.005]
[1730941993500,0.19884537,75442.0,75434.0,0.04012673]
[1730941993715,0.19884537,75442.0,75435.0,0.02209813]
[1730941993716,1.5,75441.0,75435.0,0.02209813]
[1730941993926,1.5,75441.0,75436.0,0.03034957]
[1730941994142,1.5,75441.0,75437.0,0.03034957]
[1730941994381,0.32298171,75440.0,75438.0,0.03034957]
[1730941994608,0.5454,75439.0,75438.0,0.00979728]
[1730941994879,0.67764102,75439.0,75438.0,0.00515959]
[1730941995172,2.17764102,75439.0,75438.0,0.00515959]
[1730941995447,2.39874102,75439.0,75438.0,0.00515959]
[1730941995696,2.39874102,75439.0,75422.0,0.01807716]
[1730941995697,0.5,75427.0,75422.0,0.01807716]
[1730941995960,0.12413634,75422.0,75421.0,0.19884537]
[1730941996176,0.12413634,75422.0,75421.0,0.20401404]
[1730941996384,0.12413634,75422.0,75421.0,0.02327625]
[1730941996587,1.62413634,75422.0,75421.0,0.02327625]
[1730941996874,1.62413634,75422.0,75421.0,0.01345609]
[1730941997100,1.62413634,75422.0,75421.0,0.02328429]
[1730941997757,1.59431136,75422.0,75421.0,0.02328429]
[1730941999927,1.5,75422.0,75421.0,0.02328429]
[1730942000377,1.5,75422.0,75421.0,0.0098282]
[1730942000603,1.5,75422.0,75421.0,0.02331164]
[1730942000807,1.5,75422.0,75421.0,0.02333053]
[1730942001012,1.62413634,75422.0,75421.0,0.02333053]
[1730942001911,1.62413634,75422.0,75421.0,0.02499653]
[1730942002375,1.62413634,75422.0,75421.0,0.01514944]
[1730942003093,0.12413634,75422.0,75421.0,0.01514944]
[1730942003331,0.12413634,75422.0,75421.0,0.02499539]
[1730942003559,1.62413634,75422.0,75421.0,0.01514944]
[1730942004314,1.62413634,75422.0,75421.0,0.01514602]
[1730942004575,1.5,75422.0,75421.0,0.01514602]
[1730942004807,1.55319512,75422.0,75421.0,0.001666]
[1730942005029,1.55319512,75422.0,75421.0,0.01514702]
[1730942005488,1.5,75422.0,75421.0,0.01514484]
[1730942006195,0.62413634,75435.0,75421.0,0.01514484]
[1730942006196,0.05390582,75424.0,75421.0,0.01514484]
[1730942006447,0.05390582,75424.0,75422.0,0.01347884]
[1730942006697,0.62413634,75435.0,75422.0,0.01347884]
[1730942006698,0.12413634,75429.0,75423.0,0.00518384]
[1730942006923,0.12413634,75429.0,75424.0,0.00518384]
[1730942007174,0.12413634,75429.0,75425.0,0.01347884]
[1730942007175,1.5,75428.0,75425.0,0.01347884]
[1730942007425,1.5,75428.0,75421.0,0.001666]
[1730942007426,1.5,75428.0,75426.0,0.00518384]
[1730942007681,1.5,75428.0,75427.0,0.00518384]
[1730942008142,0.5,75426.0,75421.0,0.001666]
[1730942008394,0.12413634,75422.0,75421.0,0.001666]
[1730942008619,0.12413634,75422.0,75421.0,0.00684686]
[1730942010292,0.17751964,75422.0,75421.0,0.001666]
[1730942010964,0.18428014,75422.0,75421.0,0.001666]
[1730942011942,2.02327328,75422.0,75421.0,0.001666]
[1730942012199,2.1987575,75422.0,75421.0,0.001666]
[1730942012420,2.07462116,75422.0,75421.0,0.001666]
[1730942012852,2.1987575,75422.0,75421.0,0.001666]
[1730942013295,2.07462116,75422.0,75421.0,0.001666]
[1730942013530,2.1987575,75422.0,75421.0,0.001666]
[1730942013759,2.07462116,75422.0,75421.0,0.001666]
[1730942014814,0.5,75412.0,75411.0,0.19884537]
[1730942015032,0.75637736,75412.0,75411.0,0.19884537]
[1730942015255,0.76309488,75412.0,75411.0,0.19884537]
[1730942015466,0.76309488,75412.0,75403.0,0.19884537]
[1730942015697,0.13224102,75411.0,75403.0,0.19884537]
[1730942016140,0.00672412,75410.0,75403.0,0.19884537]
[1730942016347,0.12413634,75406.0,75394.0,0.19884537]
[1730942016553,0.12413634,75406.0,75395.0,0.0051839]
[1730942016775,0.12413634,75406.0,75394.0,0.19884537]
[1730942016776,0.12413634,75406.0,75396.0,0.0051839]
[1730942017025,0.00674059,75405.0,75394.0,0.19884537]
[1730942017237,1.50674059,75405.0,75395.0,0.0051843]
[1730942017444,0.12413634,75403.0,75386.0,0.005]
[1730942017653,0.12413634,75403.0,75392.0,0.19884537]
[1730942017860,0.12413634,75403.0,75393.0,0.00518401]
[1730942018070,0.00675048,75402.0,75394.0,0.00518401]
[1730942018282,0.00675048,75402.0,75395.0,0.00518401]
[1730942018493,0.00675048,75402.0,75395.0,0.19884537]
[1730942018708,0.00675048,75402.0,75396.0,0.00518276]
[1730942018926,0.5,75404.0,75388.0,0.005]
[1730942019155,0.12413634,75400.0,75389.0,0.20402832]
[1730942019382,0.12413634,75400.0,75390.0,0.00518295]
[1730942019607,0.00676037,75399.0,75391.0,0.00518295]
[1730942019817,0.00676037,75399.0,75384.0,0.005]
[1730942020040,0.12413634,75394.0,75388.0,0.19884537]
[1730942020243,0.12413634,75394.0,75380.0,0.19884537]
[1730942020453,0.00673156,75393.0,75381.0,0.00518348]
[1730942020660,0.00673156,75393.0,75382.0,0.00518348]
[1730942020908,0.00673156,75393.0,75383.0,0.00518348]
[1730942021112,0.00673156,75393.0,75384.0,0.00518348]
[1730942021328,0.00673156,75393.0,75380.0,0.19884537]
[1730942021329,1.5,75392.0,75385.0,0.00518348]
[1730942021537,1.5,75392.0,75386.0,0.00518348]
[1730942021757,0.00673815,75391.0,75387.0,0.00518348]
[1730942021965,0.00673815,75391.0,75388.0,0.00414372]
[1730942022172,0.05473904,75393.0,75389.0,0.00414372]
[1730942022381,0.05473904,75393.0,75390.0,0.00414372]
[1730942022598,0.12413634,75394.0,75380.0,0.19884537]
[1730942023006,0.12413634,75394.0,75381.0,0.005183]
[1730942023225,0.12413634,75394.0,75382.0,0.00932671]
[1730942023573,0.12413634,75394.0,75383.0,0.00932671]
[1730942023811,1.5,75390.0,75384.0,0.00932671]
[1730942024046,0.1770012,75394.0,75384.0,0.00932671]
[1730942024047,0.05286486,75394.0,75388.0,0.20384537]
[1730942024245,0.5,75407.0,75389.0,0.14656773]
[1730942024473,0.19884537,75402.0,75390.0,0.00932671]
[1730942024824,0.00098628,75401.0,75391.0,0.14156773]
[1730942025046,0.12413634,75404.0,75392.0,0.00932671]
[1730942025290,0.00098276,75400.0,75393.0,0.00932671]
[1730942025508,0.12413634,75398.0,75394.0,0.00932671]
[1730942025730,0.12413634,75398.0,75395.0,0.00932671]
[1730942025979,0.12413634,75398.0,75396.0,0.00414371]
[1730942026238,0.12413634,75398.0,75380.0,0.19884537]
[1730942026497,0.12413634,75398.0,75391.0,0.19884537]
[1730942026735,0.12413634,75398.0,75392.0,0.0041438]
[1730942026980,0.12413634,75398.0,75393.0,0.0041438]
[1730942027200,0.12413634,75398.0,75383.0,0.001668]
[1730942027417,0.12413634,75398.0,75389.0,0.19884537]
[1730942027659,0.20463634,75398.0,75390.0,0.00414358]
[1730942027888,0.20463634,75398.0,75391.0,0.00414358]
[1730942028123,0.20463634,75398.0,75392.0,0.00414358]
[1730942028342,0.20463634,75398.0,75385.0,0.0051878]
[1730942028343,0.0009722,75397.0,75385.0,0.0051878]
[1730942028566,0.0009722,75397.0,75388.0,0.19884537]
[1730942028792,0.0009722,75397.0,75389.0,0.00414361]
[1730942029032,0.0009722,75397.0,75390.0,0.00414361]
[1730942029262,1.5009722,75397.0,75391.0,0.00414361]
[1730942029492,1.5009722,75397.0,75392.0,0.00414361]
[1730942029704,1.5009722,75397.0,75388.0,0.19884537]
[1730942029918,1.5009722,75397.0,75393.0,0.00414348]
[1730942030126,1.5009722,75397.0,75389.0,0.00414348]
[1730942030341,1.5009722,75397.0,75390.0,0.00414355]
[1730942030553,1.5009722,75397.0,75391.0,0.00414355]
[1730942030762,1.5009722,75397.0,75392.0,0.00414355]
[1730942030976,1.5009722,75397.0,75388.0,0.19884537]
[1730942031245,1.5009722,75397.0,75389.0,0.00414352]
[1730942031484,1.5009722,75397.0,75390.0,0.00414352]
[1730942031687,1.5009722,75397.0,75391.0,0.00414352]
[1730942031907,1.5009722,75397.0,75392.0,0.00414352]
[1730942032128,1.5009722,75397.0,75393.0,0.00414352]
[1730942032335,1.5009722,75397.0,75388.0,0.19884537]
[1730942032336,1.5009722,75397.0,75394.0,0.00414352]
[1730942032546,1.5009722,75397.0,75395.0,0.00414352]
[1730942032752,1.5009722,75397.0,75396.0,0.00414352]
[1730942033216,1.5009722,75397.0,75396.0,0.00414351]
[1730942035609,0.0009722,75397.0,75396.0,0.14338453]
[1730942035870,0.00595643,75399.0,75396.0,0.149222]
[1730942036091,0.0481,75418.0,75396.0,0.005]
[1730942036092,0.00072915,75397.0,75396.0,0.005]
[1730942036324,0.00072915,75397.0,75396.0,0.0128838]
[1730942036568,0.00072915,75397.0,75396.0,0.01288383]
[1730942036797,0.00072915,75397.0,75396.0,0.13993779]
[1730942037017,0.00144566,75414.0,75396.0,0.14512485]
[1730942037491,1.5,75412.0,75397.0,0.33108639]
[1730942037734,1.5,75412.0,75398.0,0.00414244]
[1730942037960,0.00533145,75411.0,75399.0,0.00414244]
[1730942038200,0.00533145,75411.0,75400.0,0.00518706]
[1730942038436,0.00533145,75411.0,75401.0,0.0093295]
[1730942038671,0.00533145,75411.0,75402.0,0.0093295]
[1730942038915,0.00533145,75411.0,75403.0,0.0093295]
[1730942039159,0.00533145,75411.0,75404.0,0.00414244]
[1730942039384,0.00533145,75411.0,75405.0,0.00414244]
[1730942039623,0.00533145,75411.0,75406.0,0.00414244]
[1730942039849,0.00533145,75411.0,75398.0,0.13224102]
[1730942039850,0.00533145,75411.0,75407.0,0.00414244]
[1730942040090,0.00533145,75411.0,75408.0,0.00414244]
[1730942040299,0.00533145,75411.0,75409.0,0.00414244]
[1730942040540,0.00533145,75411.0,75410.0,0.00414244]
[1730942041749,0.00533145,75411.0,75410.0,0.01133227]
[1730942041974,0.00533145,75411.0,75410.0,0.00933227]
[1730942042248,0.05300356,75417.0,75410.0,0.01763663]
[1730942042489,0.05300356,75417.0,75410.0,0.0176356]
[1730942042715,0.00614647,75416.0,75411.0,0.0083041]
[1730942042937,0.00614647,75416.0,75411.0,0.00414198]
[1730942043160,1.5,75416.0,75412.0,0.00518952]
[1730942043377,1.5,75416.0,75413.0,0.00518952]
[1730942043624,1.5,75416.0,75408.0,0.19884537]
[1730942043625,0.00614626,75415.0,75408.0,0.19884537]
[1730942043877,0.00614626,75415.0,75399.0,0.00355434]
[1730942043878,0.00614626,75415.0,75409.0,0.00518575]
[1730942044120,0.00614626,75415.0,75400.0,0.0083041]
[1730942044121,0.00614626,75415.0,75410.0,0.19884537]
[1730942044373,0.00614626,75415.0,75407.0,0.19884537]
[1730942046322,0.00614626,75415.0,75408.0,0.00518283]
[1730942046578,0.00614626,75415.0,75407.0,0.19884537]
[1730942046801,0.00614626,75415.0,75408.0,0.00518197]
[1730942047022,0.00614626,75415.0,75409.0,0.00518197]
[1730942047023,1.5,75414.0,75409.0,0.00518197]
[1730942047221,1.5,75414.0,75407.0,0.19884537]
[1730942047435,1.5,75414.0,75408.0,0.00518126]
[1730942047436,0.00078543,75413.0,75408.0,0.00518126]
[1730942047651,0.00078543,75413.0,75407.0,0.19884537]
[1730942047858,0.00078543,75413.0,75408.0,0.00518134]
[1730942048059,0.00078543,75413.0,75407.0,0.19884537]
[1730942048277,0.00078543,75413.0,75401.0,0.005]
[1730942048278,0.00078543,75413.0,75408.0,0.00518129]
[1730942048487,0.00078543,75413.0,75401.0,0.01]
[1730942048488,0.00078543,75413.0,75402.0,0.00518086]
[1730942048706,0.0774,75412.0,75403.0,0.00518086]
[1730942048916,0.00144566,75405.0,75404.0,0.00518086]
[1730942049127,0.00144566,75405.0,75400.0,0.00518086]
[1730942049337,1.5,75404.0,75399.0,0.19884537]
[1730942049771,0.00075026,75403.0,75399.0,0.19884537]
[1730942050856,0.00075026,75403.0,75400.0,0.00518313]
[1730942051064,0.00075026,75403.0,75401.0,0.00518313]
[1730942051285,0.00075026,75403.0,75402.0,0.00518313]
[1730942051743,0.00075026,75403.0,75396.0,0.00522234]
[1730942051956,0.00075026,75403.0,75400.0,0.19884537]
[1730942052162,0.00075026,75403.0,75397.0,0.13224102]
[1730942052375,0.5,75418.0,75396.0,0.00522234]
[1730942052376,0.00198952,75425.0,75406.0,0.00355434]
[1730942052594,0.00198952,75425.0,75407.0,0.13844711]
[1730942052826,0.00198952,75425.0,75408.0,0.008737]
[1730942053044,0.05408908,75421.0,75409.0,0.13489269]
[1730942053258,0.000834,75421.0,75410.0,0.00518266]
[1730942053484,0.000834,75421.0,75419.0,0.002]
[1730942053702,0.000834,75421.0,75420.0,0.15562929]
[1730942053913,0.000834,75421.0,75420.0,0.25362929]
[1730942054157,0.000834,75421.0,75420.0,0.25097802]
[1730942054368,0.000834,75421.0,75420.0,0.26127114]
[1730942054578,0.000834,75421.0,75420.0,0.25297802]
[1730942054807,0.000834,75421.0,75420.0,0.26589703]
[1730942055018,0.000834,75421.0,75420.0,0.25760391]
[1730942055228,0.000834,75421.0,75420.0,0.26589703]
[1730942055436,0.000834,75421.0,75420.0,0.25760391]
[1730942055873,0.000834,75421.0,75420.0,0.25960391]
[1730942056092,0.00198952,75425.0,75421.0,0.01555434]
[1730942056307,0.00198952,75425.0,75421.0,0.57077707]
[1730942056547,0.00198952,75425.0,75421.0,0.47050888]
[1730942056794,0.00198952,75425.0,75421.0,0.34637254]
[1730942057229,0.00198952,75425.0,75421.0,0.46223044]
[1730942058318,0.00198952,75425.0,75421.0,0.47050888]
[1730942058553,0.00198952,75425.0,75421.0,0.46223044]
[1730942058760,0.00198952,75425.0,75421.0,0.3380941]
[1730942059404,0.00198952,75425.0,75421.0,0.34637254]
[1730942059844,0.00198952,75425.0,75421.0,0.3380941]
[1730942060287,0.00198952,75425.0,75421.0,0.34637254]
[1730942060502,0.00198952,75425.0,75421.0,0.46223044]
[1730942060739,0.00198952,75425.0,75421.0,0.47050888]
[1730942061411,0.00198952,75425.0,75421.0,0.52340754]
[1730942062070,0.000834,75443.0,75421.0,0.59550754]
[1730942062281,0.000834,75443.0,75421.0,0.4713712]
[1730942062504,0.000834,75443.0,75421.0,0.57250754]
[1730942063138,0.000834,75443.0,75421.0,0.56588229]
[1730942063358,0.000834,75443.0,75421.0,0.57250685]
[1730942064422,0.000834,75443.0,75436.0,0.005]
[1730942064635,0.000834,75443.0,75437.0,0.13224102]
[1730942064842,0.00629277,75442.0,75438.0,0.00515742]
[1730942065068,0.00629277,75442.0,75437.0,0.13886557]
[1730942065069,0.00629277,75442.0,75439.0,0.01178197]
[1730942065297,0.00629277,75442.0,75440.0,0.01178197]
[1730942065542,1.5,75441.0,75438.0,0.01025273]
[1730942065762,0.000834,75443.0,75440.0,0.002]
[1730942066020,0.00629232,75440.0,75439.0,0.002]
[1730942066240,0.000834,75443.0,75441.0,0.002]
[1730942066470,0.000834,75443.0,75441.0,0.01555434]
[1730942066471,0.00629277,75442.0,75441.0,0.01555434]
[1730942066919,0.000834,75443.0,75442.0,0.01555434]
[1730942067168,0.000834,75443.0,75442.0,0.26119948]
[1730942067425,0.000834,75443.0,75442.0,0.26782344]
[1730942068351,0.000834,75443.0,75442.0,0.27813706]
[1730942069235,0.000834,75443.0,75442.0,0.26782344]
[1730942069469,0.000834,75443.0,75442.0,0.27813706]
[1730942069713,0.000834,75443.0,75442.0,0.26782344]
[1730942069968,0.000834,75443.0,75442.0,0.27813706]
[1730942070215,0.000834,75443.0,75442.0,0.25441932]
[1730942070426,0.000834,75443.0,75442.0,0.26780806]
[1730942070659,0.000834,75443.0,75442.0,0.26580806]
[1730942071126,0.05275884,75457.0,75447.0,0.01]
[1730942071362,0.05275884,75457.0,75448.0,0.15225372]
[1730942071595,0.00652786,75450.0,75449.0,0.0200127]
[1730942071822,1.5,75456.0,75450.0,0.002]
[1730942072060,1.5,75456.0,75450.0,0.0220127]
[1730942072280,0.0072852,75451.0,75450.0,0.0220127]
[1730942072546,0.0072852,75451.0,75450.0,0.15425372]
[1730942072767,0.0072852,75451.0,75450.0,0.26580806]
[1730942073002,0.000751,75451.0,75450.0,0.26780806]
[1730942073238,0.000751,75451.0,75450.0,0.26580806]
[1730942073739,0.000751,75451.0,75450.0,0.24579536]
[1730942073949,0.000751,75451.0,75450.0,0.26580105]
[1730942074590,0.000751,75451.0,75450.0,0.32056527]
[1730942075439,0.000751,75451.0,75450.0,0.328861]
[1730942076066,0.000751,75451.0,75450.0,0.330861]
[1730942076697,0.000751,75459.0,75458.0,0.002]
[1730942076906,0.000751,75459.0,75458.0,0.16454244]
[1730942077121,0.00728697,75459.0,75458.0,0.16254244]
[1730942077360,0.000751,75459.0,75458.0,0.13224102]
[1730942077596,0.00729945,75459.0,75458.0,0.16255107]
[1730942077819,0.000751,75459.0,75458.0,0.16255107]
[1730942078256,0.00729945,75459.0,75458.0,0.16455107]
[1730942078468,0.00729945,75459.0,75458.0,0.16255107]
[1730942078469,0.000751,75459.0,75458.0,0.16255107]
[1730942078685,0.00729945,75459.0,75458.0,0.16255107]
[1730942078932,0.000751,75459.0,75458.0,0.1723307]
[1730942079156,0.00729945,75459.0,75458.0,0.04008968]
[1730942079371,0.00729945,75459.0,75458.0,0.1723307]
[1730942079372,0.000751,75459.0,75458.0,0.1723307]
[1730942079580,0.00729945,75459.0,75458.0,0.17788504]
[1730942079789,0.000751,75459.0,75458.0,0.17788504]
[1730942080018,0.00729945,75459.0,75458.0,0.17788504]
[1730942080227,0.000751,75459.0,75458.0,0.17788504]
[1730942080458,0.00729945,75459.0,75458.0,0.17788504]
[1730942080666,0.000751,75459.0,75458.0,0.17588504]
[1730942080879,0.00729945,75459.0,75458.0,0.17588504]
[1730942081089,0.000751,75459.0,75458.0,0.1723307]
[1730942081309,0.00729945,75459.0,75458.0,0.1723307]
[1730942081558,0.000751,75459.0,75458.0,0.04008976]
[1730942081781,0.00729945,75459.0,75458.0,0.04008976]
[1730942081991,0.000751,75459.0,75458.0,0.17233078]
[1730942082211,0.00729945,75459.0,75458.0,0.17233078]
[1730942082428,0.0016981,75459.0,75458.0,0.17233078]
[1730942082668,0.00729945,75459.0,75458.0,0.04008976]
[1730942082910,0.0016981,75459.0,75458.0,0.04008976]
[1730942083120,0.0016981,75459.0,75458.0,0.17233078]
[1730942083351,0.00654845,75459.0,75458.0,0.17233078]
[1730942083576,0.00071033,75459.0,75458.0,0.04008976]
[1730942083789,0.13121033,75459.0,75458.0,0.04008976]
[1730942084228,0.08271033,75459.0,75458.0,0.04008976]
[1730942084866,0.00071033,75459.0,75458.0,0.04008976]
[1730942085078,0.00154333,75459.0,75458.0,0.04008976]
[1730942085357,0.18460216,75465.0,75458.0,0.17233078]
[1730942085600,0.0062795,75459.0,75458.0,0.13224102]
[1730942085818,0.18460216,75465.0,75458.0,0.13224102]
[1730942085819,0.18460216,75465.0,75458.0,0.17249734]
[1730942086033,0.00619071,75459.0,75458.0,0.13224102]
[1730942086258,0.15479879,75465.0,75459.0,0.002]
[1730942086486,0.0203367,75470.0,75464.0,0.00355434]
[1730942086700,0.0203367,75470.0,75465.0,0.04025441]
[1730942086910,0.0203367,75470.0,75466.0,0.04025441]
[1730942086911,1.5,75469.0,75466.0,0.04025441]
[1730942087127,1.55382563,75469.0,75466.0,0.04025441]
[1730942087343,1.55382563,75469.0,75459.0,0.005]
[1730942087566,0.05382563,75469.0,75466.0,0.02005983]
[1730942087776,0.05382563,75469.0,75466.0,0.0098297]
[1730942087777,0.00219666,75468.0,75466.0,0.0098297]
[1730942087996,0.00219666,75468.0,75466.0,0.04022874]
[1730942087997,1.50219666,75468.0,75466.0,0.04022874]
[1730942088228,0.000751,75468.0,75466.0,0.05006006]
[1730942088664,0.000751,75468.0,75466.0,0.03972137]
[1730942088880,0.00126166,75467.0,75466.0,0.03972137]
[1730942089361,0.01813622,75471.0,75466.0,0.05212775]
[1730942089592,0.00032074,75467.0,75466.0,0.03406002]
[1730942089798,0.121,75483.0,75469.0,0.002]
[1730942090006,0.05461968,75476.0,75470.0,0.00826951]
[1730942090217,0.000751,75476.0,75471.0,0.01860746]
[1730942090431,0.000751,75476.0,75472.0,0.02016772]
[1730942090642,0.000751,75476.0,75473.0,0.02377491]
[1730942090857,0.000751,75476.0,75474.0,0.0252294]
[1730942091070,0.000751,75476.0,75474.0,0.04021685]
[1730942091283,0.000751,75476.0,75475.0,0.03038708]
[1730942091516,0.000751,75476.0,75475.0,0.04021685]
[1730942094178,0.00688427,75476.0,75475.0,0.04021685]
[1730942094414,0.00110334,75476.0,75475.0,0.04021685]
[1730942094629,0.00110334,75476.0,75467.0,0.19884537]
[1730942094844,0.000751,75476.0,75475.0,0.00662223]
[1730942095061,0.000751,75476.0,75475.0,0.03361291]
[1730942095280,0.00688427,75476.0,75475.0,0.03361291]
[1730942095499,0.00110334,75476.0,75475.0,0.04023514]
[1730942095979,0.00110334,75476.0,75475.0,0.03040117]
[1730942096189,1.500751,75476.0,75475.0,0.04023853]
[1730942096621,1.50692823,75476.0,75475.0,0.04023853]
[1730942097744,1.50728057,75476.0,75475.0,0.04023853]
[1730942097977,1.50728057,75476.0,75475.0,0.01645959]
[1730942098185,1.50728057,75476.0,75475.0,0.04024624]
[1730942098443,1.50728057,75476.0,75475.0,0.03362404]
[1730942098658,1.50728057,75476.0,75475.0,0.03817776]
[1730942098872,1.50728057,75476.0,75475.0,0.05008591]
[1730942099084,1.58898057,75476.0,75475.0,0.04024866]
[1730942099311,1.58898057,75476.0,75475.0,0.04886971]
[1730942099543,1.58898057,75476.0,75475.0,0.04024866]
[1730942101080,1.58898057,75476.0,75475.0,0.02378849]
[1730942101328,1.59042623,75476.0,75475.0,0.02378849]
[1730942101547,1.59042623,75476.0,75475.0,0.04852533]
[1730942101759,0.08967523,75476.0,75475.0,0.04852814]
[1730942102718,2.28991625,75476.0,75475.0,0.04852814]
[1730942102935,2.41405259,75476.0,75475.0,0.03868859]
[1730942103144,2.41405259,75476.0,75475.0,0.04282794]
[1730942103808,2.41405259,75476.0,75458.0,0.001666]
[1730942103809,0.12364566,75465.0,75462.0,0.00862095]
[1730942104028,0.00144566,75463.0,75462.0,0.00862095]
[1730942104246,0.00144566,75463.0,75461.0,0.20747244]
[1730942104455,0.00144566,75463.0,75461.0,0.19884537]
[1730942104720,0.00144566,75463.0,75462.0,0.00984514]
[1730942105161,0.05417394,75463.0,75462.0,0.00984514]
[1730942107116,1.55417394,75463.0,75462.0,0.00984514]
[1730942107767,1.55448063,75463.0,75458.0,0.001666]
[1730942108191,1.55448063,75463.0,75459.0,0.00984538]
[1730942108406,1.55448063,75463.0,75460.0,0.00984538]
[1730942108849,1.55448063,75463.0,75461.0,0.00984538]
[1730942109066,1.55448063,75463.0,75458.0,0.001666]
[1730942109285,1.55303497,75463.0,75459.0,0.00984383]
[1730942109495,1.55303497,75463.0,75460.0,0.00984383]
[1730942109708,1.55303497,75463.0,75458.0,0.001666]
[1730942109709,1.55303497,75463.0,75461.0,0.00984383]
[1730942109919,1.55303497,75463.0,75458.0,0.001666]
[1730942110129,1.55303497,75463.0,75459.0,0.00984376]
[1730942110342,1.55303497,75463.0,75460.0,0.00984376]
[1730942110555,1.55303497,75463.0,75458.0,0.001666]
[1730942110556,0.05303497,75463.0,75458.0,0.001666]
[1730942110780,0.05303497,75463.0,75459.0,0.00775009]
[1730942111061,0.05303497,75463.0,75459.0,0.00719607]
[1730942111279,0.05303497,75463.0,75453.0,0.19308777]
[1730942111713,0.00144566,75461.0,75454.0,0.0185877]
[1730942111925,0.00144566,75461.0,75455.0,0.0185877]
[1730942112138,0.00029616,75460.0,75456.0,0.0185877]
[1730942112369,0.00029616,75460.0,75457.0,0.00827917]
[1730942112580,0.00029616,75460.0,75458.0,0.00827917]
[1730942112790,0.06060016,75464.0,75459.0,0.00827917]
[1730942112791,0.00586437,75464.0,75459.0,0.00827917]
[1730942113011,0.00586437,75464.0,75460.0,0.00827917]
[1730942113237,1.623033,75465.0,75461.0,0.00827917]
[1730942113461,1.623033,75465.0,75454.0,0.00265042]
[1730942113462,0.000833,75465.0,75463.0,0.19884537]
[1730942113695,0.000833,75465.0,75464.0,0.24844505]
[1730942113904,0.000833,75465.0,75464.0,0.24224102]
[1730942114115,0.000833,75465.0,75464.0,0.23724102]
[1730942115626,0.000833,75465.0,75464.0,0.02314829]
[1730942115843,0.000833,75465.0,75464.0,0.03244187]
[1730942118908,0.07974566,75470.0,75464.0,0.03244187]
[1730942119143,0.07974566,75470.0,75464.0,0.02729436]
[1730942119374,0.07974566,75470.0,75465.0,0.02419839]
[1730942119618,0.07974566,75470.0,75466.0,0.03245288]
[1730942119853,0.07974566,75470.0,75467.0,0.01842445]
[1730942120085,0.07974566,75470.0,75468.0,0.0206718]
[1730942120336,0.07974566,75470.0,75469.0,0.03761301]
[1730942120589,0.07974566,75470.0,75469.0,0.02729436]
[1730942121526,0.0783,75470.0,75469.0,0.02729436]
[1730942121999,0.000833,75470.0,75469.0,0.02729436]
[1730942122441,0.000833,75470.0,75469.0,0.03761872]
[1730942123078,0.000833,75470.0,75469.0,0.04747953]
[1730942124267,0.000833,75470.0,75469.0,0.17972055]
[1730942124905,0.000833,75470.0,75469.0,0.18172055]
[1730942125116,0.000833,75470.0,75469.0,0.16985974]
[1730942125366,0.000833,75470.0,75469.0,0.17972094]
[1730942125998,0.000833,75470.0,75469.0,0.17972092]
[1730942128770,0.000833,75470.0,75469.0,0.0474799]
[1730942129216,0.000833,75470.0,75469.0,0.18327526]
[1730942129423,0.000833,75470.0,75469.0,0.13579536]
[1730942129638,0.000833,75470.0,75469.0,0.17540646]
[1730942129853,0.00035234,75476.0,75471.0,0.002]
[1730942130064,0.00035234,75476.0,75473.0,0.00859908]
[1730942130303,0.00035234,75476.0,75474.0,0.0474665]
[1730942130518,0.00035234,75476.0,75475.0,0.02935669]
[1730942130740,0.00035234,75476.0,75475.0,0.03921209]
[1730942130957,0.00035234,75476.0,75475.0,0.02729201]
[1730942131828,0.04865234,75476.0,75475.0,0.03243359]
[1730942132074,0.13105234,75476.0,75475.0,0.03243359]
[1730942132312,0.13701726,75476.0,75475.0,0.03243359]
[1730942132535,0.13846292,75476.0,75475.0,0.04271867]
[1730942132750,0.13846292,75476.0,75475.0,0.03243359]
[1730942133205,1.63846292,75476.0,75475.0,0.03240829]
[1730942133628,1.63929692,75476.0,75475.0,0.03240829]
[1730942134068,1.63929692,75476.0,75475.0,0.02418082]
[1730942134513,1.63899692,75476.0,75475.0,0.03240835]
[1730942134713,1.63886958,75476.0,75475.0,0.01999181]
[1730942134925,1.69299523,75476.0,75475.0,0.03240927]
[1730942136190,1.63886958,75476.0,75475.0,0.03240927]